Cogmind - Beta 16 @@@ ROGUE MODE // 2025.11.08 @ 00:53:06 Player: Amphouse Result: Destroyed by Y-45 Defender with Beam Rifle Performance ------------- Evolutions (0) 0 Regions Visited (3) 600 Robots Destroyed (21) 105 Value Destroyed (543) 543 Prototype IDs (0) 0 Alien Tech Used (0) 0 Bonus (0) 0 TOTAL SCORE: 1248 Bonus ------- None Cogmind --------- Core Integrity 0/250 Matter 282/300 Energy 89/100 System Corruption 0% Temperature Danger (431) Movement Rolling (105) Location -8/Recycling Parts ------- > --- POWER (1) -------- Subdweller Power Source > --- PROPULSION (2) --- Compact Wheel Subdweller Monowheel > --- UTILITY (2) ------ Small Storage Unit Makeshift Light Armor Plating > --- WEAPON (2) ------- Subdweller Beam Cannon Battle Rifle > --- INVENTORY (8) ---- Light Ion Engine Compact Wheel VTOL Module Subdweller Laser Subdweller Beam Cannon Battle Rifle Battle Cannon Multitool Peak State ------------ > --- POWER ------------ Subdweller Power Source > --- PROPULSION ------- Compact Wheel Subdweller Monowheel > --- UTILITY ---------- Small Storage Unit Makeshift Light Armor Plating > --- WEAPON ----------- Battle Rifle Battle Cannon > --- INVENTORY -------- Light Ion Engine Compact Wheel Structural Scanner Seismic Detector Subdweller Beam Cannon Battle Rifle Battle Rifle Battle Cannon [Rating: 15] Favorites ----------- Power Subdweller Power Source Engine Subdweller Power Source Propulsion Compact Wheel Treads Light Treads Wheel Compact Wheel Utility Small Storage Unit Device Structural Scanner Storage Small Storage Unit Protection Makeshift Light Armor Plating Weapon Battle Rifle Energy Gun EM Pulse Gun Energy Cannon Subdweller Beam Cannon Ballistic Gun Battle Rifle Ballistic Cannon Battle Cannon Special Weapon Mining Laser Build | -11 -10 -10 -8 ------- Run | Yrd Mat Sub Rec Slots Evolved . | . . . . Power . | . . . . Propulsion . | . . . . Utility . | . . . . Weapon . | . . . . Parts Attached 27 | 7 7 12 1 Power 5 | 1 1 3 . Engine 5 | 1 1 3 . Core . | . . . . Reactor . | . . . . Propulsion 7 | 2 3 2 . Treads 2 | . 2 . . Leg . | . . . . Wheel 5 | 2 1 2 . Hover . | . . . . Flight . | . . . . Utility 5 | 2 . 3 . Device 2 | 1 . 1 . Storage 1 | 1 . . . Processor . | . . . . Hackware . | . . . . Protection 2 | . . 2 . Artifact . | . . . . Weapon 10 | 2 3 4 1 Energy Gun 1 | . 1 . . Energy Cannon 2 | . . 1 1 Ballistic Gun 5 | 2 1 2 . Ballistic Cannon 1 | . . 1 . Launcher . | . . . . Special Weapon 1 | . 1 . . Impact Weapon . | . . . . Slashing Weapon . | . . . . Piercing Weapon . | . . . . Special Melee Weapon . | . . . . Unidentified Prototypes . | . . . . Parts Lost 3 | . . 3 . Power 1 | . . 1 . Propulsion 1 | . . 1 . Utility 1 | . . 1 . Weapon . | . . . . Highest Loss Streak 2 | . . 2 . To Critical Strikes . | . . . . Average Backups 7 | 4 8 7 8 Power . | . 1 1 1 Propulsion 1 | 2 3 1 1 Utility 1 | . 1 1 . Weapon 3 | 1 2 3 4 Tool/Special . | . . . . Unused Backups 10 | . 1 1 8 Power 1 | . . . 1 Propulsion 2 | . . . 2 Utility 2 | . 1 1 . Weapon 4 | . . . 4 Tool/Special 1 | . . . 1 Average Slot Usage (%) 99 | . 100 99 100 Engine 13 | . 14 13 14 Treads 2 | . 10 1 . Wheel 25 | . 17 26 28 Device 9 | . 14 9 . Storage 14 | . 14 14 14 Protection 4 | . . 4 14 Energy Gun 3 | . 7 3 . Energy Cannon 2 | . . 2 14 Ballistic Gun 14 | . 19 14 14 Ballistic Cannon 5 | . . 8 . Peak Build Rating 15 | 8 8 15 15 Average Rating 11 | 5 7 12 15 On Entrance 7 | . 8 8 15 Avg Prop Armor Cover (%) 5 | . 11 4 . Naked Turns . | . . . . Heaviest Build 24 | 14 15 24 24 Greatest Support 36 | 26 26 36 36 Greatest Overweight (x) 1 | . 1 1 . Average Overweight (x) . | . . . . Largest Inventory Capacity 8 | 8 8 8 8 Average Capacity 7 | 7 8 8 8 Most Carried 8 | 8 8 8 8 Average Carried 7 | 4 7 7 7 Final Capacity 8 | 8 8 8 8 Final Carried 8 | 8 8 8 8 Class Distribution -------------------- 75% | Mutant 24% | Derelict-Mutant Dominant Class ---------------- Mutant | -10/Materials Mutant | -10/Subcaves Mutant | -8/Recycling Resources | -11 -10 -10 -8 ----------- Run | Yrd Mat Sub Rec Matter Collected 825 | 306 155 334 30 Remotely . | . . . . Salvage Created 672 | 121 313 238 . Parts 48 | 11 21 16 . Haulers Intercepted . | . . . . Recyclers Shooed 1 | . 1 . . Parts Field Recycled . | . . . . Retrieved Matter . | . . . . Parts Self-Destructed 11 | . . 11 . Prevented . | . . . . Parts Restored . | . . . . Kills | -11 -10 -10 -8 ------- Run | Yrd Mat Sub Rec Combat Hostiles Destroyed 15 | . 8 7 . Guns 9 | . 6 3 . Cannons 4 | . . 4 . AOE 2 | . 2 . . Classes Destroyed 8 | 2 4 2 . Builder 1 | . 1 . . Tunneler 3 | 3 . . . Recycler 1 | 1 . . . Mechanic 1 | . 1 . . Swarmer 3 | . 3 . . Grunt 5 | . 5 . . Sentry 1 | . . 1 . Subdweller 6 | . . 6 . Best Kill Streak 5 | 4 5 2 . Combat Bots Only 5 | . 5 2 . Max Kills in Single Turn 2 | 1 2 1 . Gunslinging . | . . . . Exploded 1 | . 1 . . Melee . | . . . . Uniques/NPCs Destroyed . | . . . . Combat | -11 -10 -10 -8 -------- Run | Yrd Mat Sub Rec Hostile Shots Fired 104 | . 50 41 13 Missed 28 | . 10 18 . Hits 76 | . 40 23 13 Projectile 76 | . 40 23 13 Critical Strikes 4 | . . 3 1 Damage Taken 1252 | . 533 524 195 Core 255 | . 115 81 59 Absorbed by Shields . | . . . . Core Remaining (%) 100 | 100 . . . Volleys Fired 87 | 9 37 35 6 Largest 2 | 2 2 2 2 Hottest 105 | 40 100 100 105 Shots Fired 158 | 18 72 56 12 Gun 127 | 18 70 33 6 Cannon 26 | . . 20 6 Launcher . | . . . . Special 5 | . 2 3 . Kinetic 108 | 18 47 37 6 Thermal 15 | . 2 7 6 Explosive . | . . . . Electromagnetic 35 | . 23 12 . Robot Hit Streak 33 | 6 15 29 33 Robot Miss Streak 2 | 1 2 1 2 Penetration Max . | . . . . Secondary Targets 1 | . 1 . . Max Gunslinging Chain 1 | . 1 . . Shots Hit Robots 107 | 12 46 41 8 Core Hits 37 | 7 18 12 . Critical Kills . | . . . . Critical Parts Destroyed . | . . . . Critical Strikes 2 | . 2 . . Corrupt 2 | . 2 . . Melee Attacks . | . . . . Impact . | . . . . Slashing . | . . . . Piercing . | . . . . Sneak Attacks . | . . . . Combat Hostiles . | . . . . Follow-up Attacks . | . . . . Damage Inflicted 1543 | 121 681 576 165 Guns 1132 | 121 570 368 73 Cannons 300 | . . 208 92 Explosions 111 | . 111 . . Melee . | . . . . Ramming . | . . . . Kinetic 1037 | 121 388 455 73 Thermal 203 | . 111 . 92 Explosive . | . . . . Electromagnetic 303 | . 182 121 . Impact . | . . . . Slashing . | . . . . Piercing . | . . . . Highest Corruption . | . . . . Average Corruption . | . . . . Corruption Purged . | . . . . Corruption Blocked . | . . . . Overload Shots . | . . . . Overflow Damage . | . . . . Projectiles . | . . . . Explosions . | . . . . Melee . | . . . . Knockbacks 2 | . . 2 . Impact . | . . . . Kinetic 2 | . . 2 . Secondary . | . . . . Self-Inflicted Damage 40 | . 40 . . Shots 1 | . 1 . . Rammed . | . . . . Targets Rammed . | . . . . Kicked . | . . . . Crushed . | . . . . Highest Temperature 422 | . 78 20 422 Average Temperature 63 | . 36 10 231 Received Heat Transfer 414 | . 261 72 81 Effects 1 | . . . 1 Energy Bleed 1 | . . . 1 Siege Activations . | . . . . Martial Activations . | . . . . Shielding Activations . | . . . . Robots Disrupted 1 | . 1 . . Combat Hostiles 1 | . 1 . . Robots Corrupted . | . . . . Combat Hostiles . | . . . . Parts Fried 2 | . 1 1 . Impact Corruptions . | . . . . Robots Melted . | . . . . Combat Hostiles . | . . . . Parts Melted 1 | . 1 . . Heat Transferred 261 | . 150 . 111 Parts Sabotaged . | . . . . Parts Stolen . | . . . . Parts Stripped . | . . . . Power Chain Reactions 1 | . 1 . . Alert | -11 -10 -10 -8 ------- Run | Yrd Mat Sub Rec Maximum Alert Level . | . . . . Low Security (%) 100 | 100 100 . 100 Level 1 . | . . . . Level 2 . | . . . . Level 3 . | . . . . Level 4 . | . . . . Level 5 . | . . . . High Security . | . . . . Max Security . | . . . . Peak Influence 144 | 5 144 . 30 Initial 6 | . . . 6 Average 29 | . 48 . 6 Influence Increases 387 | 20 270 65 32 Destroy 0b10 Robot/C 180 | . 160 20 . Destroy 0b10 Robot/NC 30 | 20 10 . . Destroy Leader 30 | . 30 . . Successful Hack 5 | . 5 . . Select Force Hacks 60 | . 30 . 30 Destroy Structure 7 | . 5 . 2 Lose Combat Pursuer 75 | . 30 45 . Influence Decreases 387 | 20 136 186 45 Entered New Map 72 | . . 65 7 Time Decay 315 | 20 136 121 38 Squads Dispatched 2 | . 2 . . Investigation 1 | . 1 . . Extermination . | . . . . Reinforcement 1 | . 1 . . Assault . | . . . . Garrison . | . . . . Intercept . | . . . . Searches Triggered . | . . . . Construction Impeded . | . . . . Haulers Reinforced . | . . . . Active Scanning Responses . | . . . . Cargo Convoy Interrupts . | . . . . Stealth | -11 -10 -10 -8 --------- Run | Yrd Mat Sub Rec Distress Signals 3 | . 3 . . Communications Jammed . | . . . . Distress Signals . | . . . . Times Spotted 36 | . 17 18 1 Peak Tracking Total 7 | . 7 6 1 Tactical Retreats 3 | . 1 2 . Traps | -11 -10 -10 -8 ------- Run | Yrd Mat Sub Rec Traps Triggered 2 | . . 2 . Indirectly . | . . . . Trap Hack Attempts . | . . . . Triggered . | . . . . Disarmed . | . . . . Reprogrammed . | . . . . Reused 2 | . . 2 . Traps Extracted . | . . . . Installed 2 | . . 2 . Triggered 1 | . . 1 . Most Traps Carried 1 | . . 1 . Machines | -11 -10 -10 -8 ---------- Run | Yrd Mat Sub Rec Machines Disabled . | . . . . Max in Single Turn . | . . . . Machines Repaired . | . . . . Machines Dismantled . | . . . . Machines Sabotaged . | . . . . Overloaded Fab Kills . | . . . . Hacking | -11 -10 -10 -8 --------- Run | Yrd Mat Sub Rec Machines Accessed 4 | . 2 1 1 Terminals 1 | . 1 . . Fabricators . | . . . . Repair Stations . | . . . . Recycling Units 2 | . 1 . 1 Scanalyzers . | . . . . Garrison Access . | . . . . Total Hacks 7 | . 3 3 1 Successful 6 | . 2 3 1 Failed 1 | . 1 . . Catastrophic . | . . . . Database Lockouts . | . . . . Manual 2 | . 1 . 1 Terminals 2 | . 2 . . Fabricators . | . . . . Repair Stations . | . . . . Recycling Units 2 | . 1 . 1 Scanalyzers . | . . . . Garrison Access . | . . . . Terminal Hacks 4 | . 1 3 . Record 3 | . . 3 . Robot Analysis 1 | . 1 . . Fabricator Hacks . | . . . . Repair Station Hacks . | . . . . Recycling Unit Hacks . | . . . . Scanalyzer . | . . . . Garrison Access Hacks . | . . . . Unauthorized Hacks 2 | . 1 . 1 Terminals . | . . . . Fabricators . | . . . . Repair Stations . | . . . . Recycling Units 2 | . 1 . 1 Tunnel 2 | . 1 . 1 Scanalyzers . | . . . . Garrison Access . | . . . . Data Cores Recovered . | . . . . Used . | . . . . Hacking Detections 1 | . 1 . . Full Trace Events . | . . . . Feedback Events . | . . . . Feedback Blocked . | . . . . Robot Schematics Acquired . | . . . . Robots Built . | . . . . Authchips . | . . . . Time . | . . . . Total Robot Build Rating . | . . . . Part Schematics Acquired . | . . . . Parts Built . | . . . . Authchips . | . . . . Time . | . . . . Total Part Build Rating . | . . . . Part Studies Acquired . | . . . . Parts Repaired . | . . . . Time . | . . . . Parts Recycled . | . . . . Recycled Matter . | . . . . Retrieved Matter . | . . . . Retrieved Components . | . . . . Parts Scanalyzed . | . . . . Part Schematics Acquired . | . . . . Parts Damaged . | . . . . Bothacking | -11 -10 -10 -8 ------------ Run | Yrd Mat Sub Rec Used RIF Installer . | . . . . Robots Hacked . | . . . . Non-combat . | . . . . Combat . | . . . . Robot Hacks Applied . | . . . . Relay Couplers Released . | . . . . Fabnet Peak Effective % . | . . . . Robots Rewired 1 | . 1 . . Allies Hacked . | . . . . Hacks Repelled . | . . . . Allies | -11 -10 -10 -8 -------- Run | Yrd Mat Sub Rec Total Allies 1 | . 1 . . Largest Group 1 | . 1 1 . Highest-Rated Group 8 | . 8 8 . Highest-Rated Ally 8 | . 8 8 . Total Orders . | . . . . Ally Attacks 5 | . . 5 . Total Damage 53 | . . 53 . Kills . | . . . . Allies Corrupted . | . . . . Allies Melted . | . . . . Intel | -11 -10 -10 -8 ------- Run | Yrd Mat Sub Rec Active Infowar (turns) 1290 | 13 351 926 . Structural 817 | . . 817 . Seismic 473 | 13 351 109 . Robot Analysis Total 1 | . 1 . . Derelict Logs Recovered 1 | . . 1 . Drone Launches . | . . . . Drone Recoveries . | . . . . Exploration | -11 -10 -10 -8 ------------- Run | Yrd Mat Sub Rec Turns Passed 1973 | 109 351 1367 146 Spaces Moved 1505 | 63 185 1152 105 Core 2 | 2 . . . Treads 1 | . 1 . . Legs . | . . . . Wheels 1502 | 61 184 1152 105 Hover . | . . . . Flight . | . . . . Fastest Speed 50 | 50 80 90 105 Average Speed 100 | 87 88 102 105 Slowest Speed 160 | 90 160 115 105 Overloaded Moves . | . . . . Propulsion Burnouts . | . . . . Robots Hopped . | . . . . Potential Cave-ins . | . . . . Cave-ins Triggered . | . . . . Exploration Rate (%) 36 | 4 34 82 24 Regions Visited 3 Branch Regions 2 Pre-discovered Areas 3 | . 1 1 1 Known Exits Taken . | . . . . Unknown Exits Taken 3 | 1 1 1 . Scrap Searched 6 | . . 6 . Spaces Dug 5 | . 2 3 . Terrain Destroyed 8 | . 4 3 1 Melee . | . . . . Projectile 6 | . 2 3 1 AOE 2 | . 2 . . Terrain Rammed . | . . . . Walls Destroyed . | . . . . Machines Disabled . | . . . . Actions | -11 -10 -10 -8 --------- Run | Yrd Mat Sub Rec Total 1802 | 98 296 1278 130 Wait 115 | 9 44 46 16 Move 1502 | 62 184 1151 105 Hop . | . . . . Pick Up 25 | 11 2 11 1 Fast Attach 12 | 4 2 6 . Attach 10 | 3 . 6 1 Detach . | . . . . Swap 15 | . 9 6 . Drop 20 | . 4 15 1 Fire 87 | 9 37 35 6 Melee . | . . . . Ram . | . . . . Kick . | . . . . Crush . | . . . . Escape Stasis . | . . . . Rewire 14 | . 14 . . Trap 2 | . . 2 . Miscellaneous . | . . . . Route ------- -11/Scrapyard -10/Materials -10/Subcaves (discovered 2 exits: [*Mat] / *Rec) -8/Recycling History --------- Turn | Location | Event 16 | -11/Scrapyard | Discovered new exit (range 15) 110 | -11/Scrapyard | Entered Materials 305 | -10/Materials | Build established: Mutant 434 | -10/Materials | Discovered new exit (range 8) 461 | -10/Materials | Entered Subcaves 461 | -10/Subcaves | Accompanied by 1 ally 462 | -10/Subcaves | Approached by a straggling Scientist 555 | -10/Subcaves | Shifting Twisted Machinery released Battle Cannon 562 | -10/Subcaves | Shifting Twisted Machinery released Sub. Monowheel 637 | -10/Subcaves | Discovered new exit (range 5) 639 | -10/Subcaves | Shifting Twisted Machinery released Battle Rifle 1216 | -10/Subcaves | A swath of the cavern ceiling suddenly collapsed 1221 | -10/Subcaves | Visited Clippyterm 1224 | -10/Subcaves | Learned Factory fabricator intel 1266 | -10/Subcaves | Core integrity fell below 50% 1299 | -10/Subcaves | Shifting Twisted Machinery released Sub. Power Source 1314 | -10/Subcaves | Disturbed a concealed Subdweller 1363 | -10/Subcaves | Shifting Twisted Machinery released Battle Rifle 1435 | -10/Subcaves | A swath of the cavern ceiling suddenly collapsed 1513 | -10/Subcaves | Learned Materials emergency access door positions 1550 | -10/Subcaves | Learned location of Zion (-7) 1550 | -10/Subcaves | Met a Zionite searching for "candidates" 1662 | -10/Subcaves | Discovered new exit (range 9) 1667 | -10/Subcaves | Ambushed by Subdweller buried in earth 1667 | -10/Subcaves | Ambushed by Subdweller buried in earth 1667 | -10/Subcaves | Ambushed by Subdweller buried in earth 1743 | -10/Subcaves | Build established: Derelict-Mutant 1828 | -10/Subcaves | Entered Recycling 1966 | -8/Recycling | Core integrity fell below 20% 1974 | -8/Recycling | Destroyed by Y-45 Defender with Beam Rifle Last Messages --------------- Acquired Sub. Monowheel. Acquired Sub. Laser. Acquired 10 matter. Dropped Sub. Power Source. Dropped Battle Rifle. Acquired Sub. Beam Cannon. LOCATION=UNKNOWN GOAL=ESCAPE Connecting with Recycling Unit... Current location identified: Recycling >>Force(Tunnel) DISCOVERED[-5/Hub_04(d)] Dropped Sub. Beam Cannon. Acquired VTOL Module. R-06 Scavenger collects Sub. Beam Cannon. Acquired 30 matter. Y-45 Defender springs to life. Critical hit (Burn: +37). Overheating: Energy bleed (-40). Sub. Power Source shoots sparks and powers down. Map ----- +----------------------------------------------------+ | ############ #????????????????????????????? | | # # # #????????????????????????????? | | # # """ + # #????????????????????????????? | | # # "Y" """ # # #??????? #???????????????????? | | # # """ ##### ######## #####???????????????? | | # + """ #???# ???????????????? | | # # """ #???# ??????????????? | | # # """ ##### ??????????????? | | % # + ??????????????? | | % ############### ??????????????? | | % #????????????# ??????????????? | | # ##????????????# ??????????????? | | # #?############# ??????????????? | | # #?#! !! !!!# ??????????????? | | # #?# ! !!+ ??????????????? | | # #?# !# u ##???????????????? | | # #?# ! ! # #????????????????? | | # #?############# #????????????????? | | # #?????????????# #????????????????? | | # #???????????###+##+##;# #????????????????? | | # #???????????# * # #????????????????? | | # #???????????# ! # #????????????????? | | # #???????????# ! ! # #????????????????? | | # #???????????#= # #????????????????? | | # ###?????????# Y #????????????????? | | # /#?????????# % @; ###########??????? | | # //#?????????# # ??????? | | # / #?????????# ! % # ??????? | | # ###?????????####+###### ?????? | | # #??????????????# #????# ?????? | | # #?????????????## ##???# ????? | | #####?????????????# ##### ????? | | ??????????????????# ????? | | ??????????????????# ############### ####???????? | | ??????????????????#####??????????????##??????????? | | ?????????????????????????????????????????????????? | | ?????????????????????????????????????????????????? | | ?????????????????????????????????????????????????? | | | | | | | | | | | | | | | | | | | | | | | | | +----------------------------------------------------+ Best States ------------- Heat Dissipation 25 Energy Generation 15 Energy Capacity 250 Matter Stores 300 Matter Capacity 300 Sight Range 16 Terrain Scan Density 10 Armor Coverage 150 Evasion (%) 44 Recoil Reduction 2 Item Schematics ----------------- None Robot Schematics ------------------ None Fabricated ------------ Nothing Repaired ---------- Nothing Studied --------- None Alien Tech Used ----------------- None Achievements -------------- None Challenges ------------ None Game ------ Seed BladeTrackerBeacon Manual? 0 Play Time 00:38:58 Cumulative 209.5 hours Start 2025.11.08 @ 00:15:41 End 2025.11.08 @ 00:53:06 Sessions 1 Manual Loads 0 Difficulty Rogue Special Mode None Game No. 81 Rogue 81 Adventurer 0 Explorer 0 Win Type - Total 14 Types 11/1/2/0/0/0/0/0/0/0 Lore% 59 Gallery% 67 Achievement% 35 Wizard Run 0 Options --------- Layout 0 ASCII 0 Keyboard 0 Movement Numpad Keybinds 0 Fullscreen 2 Font 18/X11 Map View 76x50 Zoom Use 0% Tactical HUD 1 Map Filters NONE Filters NONE Steam 1 RUN: 16ecdab3-1258-4980-b6ad-0e297d44d4e6